[Event "*** SCC Grand Prix: Titled Tuesday Blitz"]
[Site "Chess.com"]
[Date "2020.06.02"]
[Round "4"]
[White "blitzking1729"]
[Black "Arjun2002"]
[Result "1/2-1/2"]
[WhiteElo "2469"]
[BlackElo "2641"]
[TimeControl "180+1"]
[EndTime "10:42:42 PDT"]
[Termination "Game drawn by repetition"]

1. c4 {[%clk 0:03:00.1]} 1... c6 {[%clk 0:02:59.5]} 2. d4 {[%clk 0:02:58.5]}
2... d5 {[%clk 0:02:59.6]} 3. Nf3 {[%clk 0:02:58.8]} 3... Nf6 {[%clk 0:02:59.5]}
4. Qc2 {[%clk 0:02:59]} 4... g6 {[%clk 0:02:58.9]} 5. Bf4 {[%clk 0:02:56.5]}
5... Bg7 {[%clk 0:02:59]} 6. e3 {[%clk 0:02:56.4]} 6... O-O {[%clk 0:02:59.1]}
7. Nc3 {[%clk 0:02:56.5]} 7... c5 {[%clk 0:02:59.3]} 8. dxc5 {[%clk 0:02:53.9]}
8... Qa5 {[%clk 0:02:59.1]} 9. Nd2 {[%clk 0:02:53.1]} 9... dxc4 {[%clk
0:02:44.8]} 10. Nxc4 {[%clk 0:02:41.4]} 10... Qxc5 {[%clk 0:02:38.3]} 11. Be2
{[%clk 0:02:36.5]} 11... Nc6 {[%clk 0:02:36.9]} 12. O-O {[%clk 0:02:28.5]} 12...
Nh5 {[%clk 0:02:26.5]} 13. Ne4 {[%clk 0:02:08.3]} 13... Qd5 {[%clk 0:01:31.1]}
14. Rad1 {[%clk 0:02:00.6]} 14... Nxf4 {[%clk 0:01:31]} 15. Rxd5 {[%clk
0:01:51.8]} 15... Nxd5 {[%clk 0:01:31.9]} 16. Rd1 {[%clk 0:01:40.3]} 16... Nf6
{[%clk 0:01:21.8]} 17. Nc3 {[%clk 0:01:33.2]} 17... Be6 {[%clk 0:01:18.9]} 18.
Qa4 {[%clk 0:01:11.7]} 18... Rac8 {[%clk 0:01:11.4]} 19. Na5 {[%clk 0:01:05.2]}
19... a6 {[%clk 0:01:07.2]} 20. Nxb7 {[%clk 0:00:59.6]} 20... Nd7 {[%clk
0:01:04.2]} 21. Bxa6 {[%clk 0:00:54.6]} 21... Rc7 {[%clk 0:00:59]} 22. Nb5
{[%clk 0:00:38.7]} 22... Nb6 {[%clk 0:00:58.5]} 23. Qc2 {[%clk 0:00:28.5]} 23...
Rcc8 {[%clk 0:00:58.6]} 24. Qd2 {[%clk 0:00:21.8]} 24... Nb8 {[%clk 0:00:53.2]}
25. Qa5 {[%clk 0:00:19.3]} 25... Nc4 {[%clk 0:00:53.4]} 26. Qe1 {[%clk
0:00:07.4]} 26... Nxa6 {[%clk 0:00:53.4]} 27. b3 {[%clk 0:00:06.9]} 27... Nb2
{[%clk 0:00:51]} 28. Rb1 {[%clk 0:00:06.3]} 28... Rb8 {[%clk 0:00:48.3]} 29. Nd4
{[%clk 0:00:05]} 29... Bxd4 {[%clk 0:00:30.8]} 30. exd4 {[%clk 0:00:04.7]} 30...
Nd3 {[%clk 0:00:28.6]} 31. Qe4 {[%clk 0:00:04.1]} 31... Nab4 {[%clk 0:00:25.8]}
32. Nc5 {[%clk 0:00:03.1]} 32... Bd5 {[%clk 0:00:26.2]} 33. Qe3 {[%clk
0:00:02.5]} 33... Nxc5 {[%clk 0:00:22.8]} 34. dxc5 {[%clk 0:00:03.4]} 34... e6
{[%clk 0:00:23.1]} 35. a3 {[%clk 0:00:03.2]} 35... Nc6 {[%clk 0:00:23.1]} 36.
Qc3 {[%clk 0:00:03.3]} 36... Na7 {[%clk 0:00:17.7]} 37. b4 {[%clk 0:00:03.7]}
37... Nb5 {[%clk 0:00:18]} 38. Qc1 {[%clk 0:00:01.8]} 38... Ra8 {[%clk
0:00:18.1]} 39. Ra1 {[%clk 0:00:01.5]} 39... Ra4 {[%clk 0:00:18.3]} 40. Kh1
{[%clk 0:00:01.9]} 40... Rfa8 {[%clk 0:00:18.4]} 41. Qf1 {[%clk 0:00:02.4]}
41... Nxa3 {[%clk 0:00:17.5]} 42. h3 {[%clk 0:00:01.5]} 42... Nc4 {[%clk
0:00:14.2]} 43. Rxa4 {[%clk 0:00:01.1]} 43... Rxa4 {[%clk 0:00:15.1]} 44. b5
{[%clk 0:00:01.7]} 44... Ra5 {[%clk 0:00:15.5]} 45. b6 {[%clk 0:00:01.8]} 45...
Rxc5 {[%clk 0:00:15.1]} 46. Qb1 {[%clk 0:00:02.4]} 46... Rc8 {[%clk 0:00:14.4]}
47. b7 {[%clk 0:00:02.3]} 47... Rb8 {[%clk 0:00:14.7]} 48. Qb4 {[%clk
0:00:02.1]} 48... Rxb7 {[%clk 0:00:14.8]} 49. Qc5 {[%clk 0:00:02.4]} 49... Rb1+
{[%clk 0:00:14.7]} 50. Kh2 {[%clk 0:00:02.2]} 50... Rb8 {[%clk 0:00:15.5]} 51.
Qc7 {[%clk 0:00:01.4]} 51... Ra8 {[%clk 0:00:15.8]} 52. Qc5 {[%clk 0:00:01.6]}
52... Ne5 {[%clk 0:00:15.6]} 53. Qd4 {[%clk 0:00:01.7]} 53... Nd7 {[%clk
0:00:15.8]} 54. Qe3 {[%clk 0:00:02]} 54... h5 {[%clk 0:00:15.9]} 55. f3 {[%clk
0:00:02.5]} 55... Kg7 {[%clk 0:00:16.3]} 56. h4 {[%clk 0:00:03]} 56... Nf6
{[%clk 0:00:16.1]} 57. Qd4 {[%clk 0:00:03.4]} 57... Rc8 {[%clk 0:00:15.8]} 58.
g4 {[%clk 0:00:03.5]} 58... Rc4 {[%clk 0:00:15.6]} 59. Qe5 {[%clk 0:00:02.1]}
59... hxg4 {[%clk 0:00:15.7]} 60. h5 {[%clk 0:00:02.6]} 60... gxf3 {[%clk
0:00:15.4]} 61. h6+ {[%clk 0:00:02.6]} 61... Kxh6 {[%clk 0:00:12.9]} 62. Qxf6
{[%clk 0:00:03.1]} 62... f2 {[%clk 0:00:12.5]} 63. Qxf2 {[%clk 0:00:02.7]} 63...
Kg7 {[%clk 0:00:12]} 64. Qb2+ {[%clk 0:00:02]} 64... Kg8 {[%clk 0:00:10.9]} 65.
Kg3 {[%clk 0:00:02.5]} 65... Re4 {[%clk 0:00:09.8]} 66. Qb8+ {[%clk 0:00:02.9]}
66... Kg7 {[%clk 0:00:09]} 67. Kf2 {[%clk 0:00:03.8]} 67... g5 {[%clk 0:00:08]}
68. Qb2+ {[%clk 0:00:04.2]} 68... Kg6 {[%clk 0:00:07.8]} 69. Qc3 {[%clk
0:00:04.3]} 69... g4 {[%clk 0:00:07.3]} 70. Qc8 {[%clk 0:00:04.5]} 70... f5
{[%clk 0:00:06]} 71. Qg8+ {[%clk 0:00:04.4]} 71... Kf6 {[%clk 0:00:06.2]} 72.
Qf8+ {[%clk 0:00:04.8]} 72... Ke5 {[%clk 0:00:06.2]} 73. Qg7+ {[%clk 0:00:05.2]}
73... Kd6 {[%clk 0:00:06.3]} 74. Qf8+ {[%clk 0:00:05.6]} 74... Kc6 {[%clk
0:00:06.5]} 75. Qc8+ {[%clk 0:00:05.5]} 75... Kb5 {[%clk 0:00:06.9]} 76. Qb8+
{[%clk 0:00:05.6]} 76... Kc4 {[%clk 0:00:07.2]} 77. Qc7+ {[%clk 0:00:05.9]}
77... Kd3 {[%clk 0:00:07.1]} 78. Qb6 {[%clk 0:00:04.4]} 78... Re2+ {[%clk
0:00:07.1]} 79. Kf1 {[%clk 0:00:03.3]} 79... Rc2 {[%clk 0:00:05.3]} 80. Ke1
{[%clk 0:00:01.6]} 80... Rc1+ {[%clk 0:00:05.3]} 81. Kf2 {[%clk 0:00:01.6]}
81... Rc2+ {[%clk 0:00:05.7]} 82. Kg3 {[%clk 0:00:02.1]} 82... Rc3 {[%clk
0:00:04.5]} 83. Kf4 {[%clk 0:00:02.6]} 83... Rc4+ {[%clk 0:00:04.4]} 84. Kg3
{[%clk 0:00:02.3]} 84... Bf3 {[%clk 0:00:04.6]} 85. Qd6+ {[%clk 0:00:01.8]}
85... Kc3 {[%clk 0:00:04.4]} 86. Qxe6 {[%clk 0:00:01.9]} 86... f4+ {[%clk
0:00:04.8]} 87. Kf2 {[%clk 0:00:01.5]} 87... Rd4 {[%clk 0:00:05]} 88. Qe5 {[%clk
0:00:01.8]} 88... Kc4 {[%clk 0:00:04.5]} 89. Qe6+ {[%clk 0:00:02.1]} 89... Kc3
{[%clk 0:00:04.4]} 90. Qe5 {[%clk 0:00:02.4]} 90... Kd3 {[%clk 0:00:04.8]} 91.
Qf5+ {[%clk 0:00:02.6]} 91... Kc4 {[%clk 0:00:04.2]} 92. Qe6+ {[%clk 0:00:02.8]}
92... Kd3 {[%clk 0:00:03.5]} 93. Qf5+ {[%clk 0:00:03]} 93... Kd2 {[%clk
0:00:04]} 94. Qe5 {[%clk 0:00:03.1]} 94... Rd3 {[%clk 0:00:04.3]} 95. Qxf4+
{[%clk 0:00:03.3]} 95... Kc2 {[%clk 0:00:03.9]} 96. Qc4+ {[%clk 0:00:03.2]}
96... Rc3 {[%clk 0:00:03.8]} 97. Qa4+ {[%clk 0:00:02.7]} 97... Kb2 {[%clk
0:00:03.9]} 98. Qb4+ {[%clk 0:00:02.6]} 98... Kc2 {[%clk 0:00:03.9]} 99. Qa4+
{[%clk 0:00:02.7]} 99... Kb2 {[%clk 0:00:04.3]} 100. Qb4+ {[%clk 0:00:03]}
100... Kc2 {[%clk 0:00:04.7]} 101. Qa4+ {[%clk 0:00:03.3]} 1/2-1/2

[Event "*** SCC Grand Prix: Titled Tuesday Blitz"]
[Site "Chess.com"]
[Date "2020.06.02"]
[Round "4"]
[White "Haykoooo0o"]
[Black "Bigfish1995"]
[Result "1/2-1/2"]
[WhiteElo "2567"]
[BlackElo "2989"]
[TimeControl "180+1"]
[EndTime "10:45:08 PDT"]
[Termination "Game drawn by 50-move rule"]

1. d4 {[%clk 0:03:00.9]} 1... a6 {[%clk 0:02:35.3]} 2. Nf3 {[%clk 0:02:56.1]}
2... b5 {[%clk 0:02:35.1]} 3. a4 {[%clk 0:02:55.1]} 3... b4 {[%clk 0:02:35.1]}
4. e4 {[%clk 0:02:51.4]} 4... Bb7 {[%clk 0:02:34.5]} 5. Bd3 {[%clk 0:02:50]}
5... g6 {[%clk 0:02:30.1]} 6. h4 {[%clk 0:02:48.4]} 6... h5 {[%clk 0:02:29.2]}
7. Nbd2 {[%clk 0:02:46.6]} 7... Bg7 {[%clk 0:02:29.2]} 8. Qe2 {[%clk 0:02:42.5]}
8... a5 {[%clk 0:02:26.8]} 9. c3 {[%clk 0:02:37.6]} 9... c5 {[%clk 0:02:23.4]}
10. dxc5 {[%clk 0:02:32.8]} 10... Na6 {[%clk 0:02:22.3]} 11. Nb3 {[%clk
0:02:25.7]} 11... bxc3 {[%clk 0:02:21.8]} 12. O-O {[%clk 0:02:24.2]} 12... Nb4
{[%clk 0:02:21.4]} 13. bxc3 {[%clk 0:02:20.6]} 13... Nxd3 {[%clk 0:02:17.8]} 14.
Qxd3 {[%clk 0:02:19.5]} 14... Ba6 {[%clk 0:02:18.4]} 15. c4 {[%clk 0:02:07.2]}
15... Bxa1 {[%clk 0:02:16.1]} 16. Nxa1 {[%clk 0:02:08.1]} 16... Nf6 {[%clk
0:02:16.4]} 17. Nb3 {[%clk 0:01:55.5]} 17... Bb7 {[%clk 0:02:14.8]} 18. Re1
{[%clk 0:01:53.1]} 18... Qc7 {[%clk 0:02:10.3]} 19. e5 {[%clk 0:01:44]} 19...
Ng4 {[%clk 0:02:08.7]} 20. Bf4 {[%clk 0:01:43.1]} 20... Bxf3 {[%clk 0:02:03.4]}
21. Qxf3 {[%clk 0:01:41.1]} 21... Qc6 {[%clk 0:02:03.9]} 22. Nd4 {[%clk
0:01:12.6]} 22... Qxf3 {[%clk 0:02:01.3]} 23. gxf3 {[%clk 0:01:13.5]} 23... Nh6
{[%clk 0:02:01.7]} 24. Rb1 {[%clk 0:01:13.8]} 24... Nf5 {[%clk 0:02:00.1]} 25.
Nxf5 {[%clk 0:01:09.1]} 25... gxf5 {[%clk 0:02:00.2]} 26. Rb7 {[%clk 0:01:09.1]}
26... Rg8+ {[%clk 0:02:00.2]} 27. Kf1 {[%clk 0:01:08.9]} 27... Rg6 {[%clk
0:01:59.5]} 28. Ke2 {[%clk 0:01:05.7]} 28... Rc6 {[%clk 0:01:52.7]} 29. Be3
{[%clk 0:01:05.8]} 29... f4 {[%clk 0:01:43.2]} 30. Bd4 {[%clk 0:01:04.1]} 30...
f6 {[%clk 0:01:43.2]} 31. exf6 {[%clk 0:01:00.8]} 31... e5 {[%clk 0:01:43.2]}
32. Bc3 {[%clk 0:00:42.1]} 32... Rxc5 {[%clk 0:01:43.2]} 33. Kd3 {[%clk
0:00:41.8]} 33... Rac8 {[%clk 0:01:41.2]} 34. Rb5 {[%clk 0:00:23.5]} 34... d6
{[%clk 0:01:37.9]} 35. Rb7 {[%clk 0:00:19.3]} 35... Rxc4 {[%clk 0:01:20.5]} 36.
Bxa5 {[%clk 0:00:17.4]} 36... Rxa4 {[%clk 0:01:20.6]} 37. Re7+ {[%clk
0:00:12.2]} 37... Kf8 {[%clk 0:01:20.1]} 38. Bc7 {[%clk 0:00:12.7]} 38... Rd4+
{[%clk 0:01:18.2]} 39. Ke2 {[%clk 0:00:11.9]} 39... Re8 {[%clk 0:01:18.2]} 40.
Rh7 {[%clk 0:00:11.2]} 40... Re6 {[%clk 0:01:11]} 41. Bd8 {[%clk 0:00:11]} 41...
Ra4 {[%clk 0:00:50.8]} 42. Be7+ {[%clk 0:00:10.5]} 42... Ke8 {[%clk 0:00:50.6]}
43. Rh8+ {[%clk 0:00:10.8]} 43... Kf7 {[%clk 0:00:50.9]} 44. Rxh5 {[%clk
0:00:09.1]} 44... Ra2+ {[%clk 0:00:40.3]} 45. Kf1 {[%clk 0:00:09]} 45... Ra8
{[%clk 0:00:26.4]} 46. Rh7+ {[%clk 0:00:07.3]} 46... Kg6 {[%clk 0:00:24.6]} 47.
Rg7+ {[%clk 0:00:07.2]} 47... Kh6 {[%clk 0:00:23.6]} 48. Kg2 {[%clk 0:00:04.3]}
48... d5 {[%clk 0:00:18.6]} 49. Kh3 {[%clk 0:00:03.8]} 49... d4 {[%clk
0:00:17.5]} 50. Kg4 {[%clk 0:00:04.3]} 50... d3 {[%clk 0:00:18]} 51. Kf5 {[%clk
0:00:04.8]} 51... d2 {[%clk 0:00:18.5]} 52. Rg1 {[%clk 0:00:04.8]} 52... Rc6
{[%clk 0:00:16.4]} 53. Rd1 {[%clk 0:00:02.7]} 53... e4 {[%clk 0:00:15.2]} 54.
Kxf4 {[%clk 0:00:02.1]} 54... exf3 {[%clk 0:00:14.5]} 55. Kxf3 {[%clk 0:00:03]}
55... Kg6 {[%clk 0:00:11.6]} 56. Rxd2 {[%clk 0:00:02.9]} 56... Rc3+ {[%clk
0:00:11.8]} 57. Kg2 {[%clk 0:00:03.4]} 57... Ra4 {[%clk 0:00:12.3]} 58. Re2
{[%clk 0:00:03.7]} 58... Rg4+ {[%clk 0:00:12.3]} 59. Kf1 {[%clk 0:00:03.5]}
59... Rxh4 {[%clk 0:00:12.4]} 60. Re1 {[%clk 0:00:04.4]} 60... Rh1+ {[%clk
0:00:12.4]} 61. Ke2 {[%clk 0:00:04.9]} 61... Rc2+ {[%clk 0:00:12.7]} 62. Kd1
{[%clk 0:00:05.3]} 62... Rc1+ {[%clk 0:00:12]} 63. Kxc1 {[%clk 0:00:05.3]} 63...
Rxe1+ {[%clk 0:00:12.9]} 64. Kd2 {[%clk 0:00:06.2]} 64... Re6 {[%clk 0:00:13.6]}
65. Kd3 {[%clk 0:00:05.8]} 65... Kf7 {[%clk 0:00:14.1]} 66. Kd2 {[%clk
0:00:05.7]} 66... Ra6 {[%clk 0:00:14.6]} 67. Kd3 {[%clk 0:00:06]} 67... Ke6
{[%clk 0:00:15.1]} 68. Ke3 {[%clk 0:00:06.1]} 68... Ra2 {[%clk 0:00:15.1]} 69.
Kf3 {[%clk 0:00:05.8]} 69... Rc2 {[%clk 0:00:14.6]} 70. Kg3 {[%clk 0:00:06.1]}
70... Rc4 {[%clk 0:00:14.5]} 71. f3 {[%clk 0:00:06.2]} 71... Rd4 {[%clk
0:00:14.1]} 72. Kf2 {[%clk 0:00:06.5]} 72... Kf7 {[%clk 0:00:14.3]} 73. Ke3
{[%clk 0:00:06.8]} 73... Ra4 {[%clk 0:00:14.8]} 74. Kf2 {[%clk 0:00:07.3]} 74...
Kg6 {[%clk 0:00:15.3]} 75. Ke3 {[%clk 0:00:07.8]} 75... Ra5 {[%clk 0:00:15.7]}
76. Ke4 {[%clk 0:00:07.7]} 76... Rf5 {[%clk 0:00:15.1]} 77. f4 {[%clk
0:00:06.9]} 77... Ra5 {[%clk 0:00:14.9]} 78. Kf3 {[%clk 0:00:06.8]} 78... Rb5
{[%clk 0:00:13.7]} 79. Ke3 {[%clk 0:00:07]} 79... Rb3+ {[%clk 0:00:13]} 80. Kd4
{[%clk 0:00:07.1]} 80... Rb1 {[%clk 0:00:12.3]} 81. Ke5 {[%clk 0:00:07.1]} 81...
Re1+ {[%clk 0:00:11.6]} 82. Kd4 {[%clk 0:00:07.5]} 82... Kf7 {[%clk 0:00:12]}
83. Kd5 {[%clk 0:00:07.3]} 83... Re2 {[%clk 0:00:11.7]} 84. Kd4 {[%clk
0:00:07.6]} 84... Ke6 {[%clk 0:00:12]} 85. Kd3 {[%clk 0:00:07.5]} 85... Re1
{[%clk 0:00:12.1]} 86. Kd4 {[%clk 0:00:07.6]} 86... Ra1 {[%clk 0:00:11.4]} 87.
Ke4 {[%clk 0:00:07.5]} 87... Ra5 {[%clk 0:00:11.1]} 88. Kf3 {[%clk 0:00:07.2]}
88... Ra4 {[%clk 0:00:09.6]} 89. Kg4 {[%clk 0:00:07.1]} 89... Kf7 {[%clk
0:00:09.6]} 90. Kg5 {[%clk 0:00:07]} 90... Ra1 {[%clk 0:00:09.2]} 91. Kf5 {[%clk
0:00:07]} 91... Re1 {[%clk 0:00:09.3]} 92. Kg5 {[%clk 0:00:07]} 92... Re4 {[%clk
0:00:09.1]} 93. Kf5 {[%clk 0:00:07.2]} 93... Re3 {[%clk 0:00:09.3]} 94. Kg5
{[%clk 0:00:07.6]} 94... Ke6 {[%clk 0:00:08.8]} 95. f5+ {[%clk 0:00:05.7]} 95...
Kf7 {[%clk 0:00:08.3]} 96. Kf4 {[%clk 0:00:06.1]} 96... Rb3 {[%clk 0:00:07]} 97.
Kg5 {[%clk 0:00:06.5]} 97... Rb1 {[%clk 0:00:06.7]} 98. Kf4 {[%clk 0:00:06.9]}
98... Rg1 {[%clk 0:00:06.8]} 99. Ke5 {[%clk 0:00:07.2]} 99... Ke8 {[%clk
0:00:06.3]} 100. Kf4 {[%clk 0:00:07.5]} 100... Rf1+ {[%clk 0:00:06]} 101. Ke5
{[%clk 0:00:07.9]} 101... Kf7 {[%clk 0:00:06]} 102. Ke4 {[%clk 0:00:08]} 102...
Rf2 {[%clk 0:00:05.5]} 103. Ke5 {[%clk 0:00:08.3]} 103... Re2+ {[%clk 0:00:05]}
104. Kf4 {[%clk 0:00:08.6]} 104... Re1 {[%clk 0:00:05.6]} 105. Kg5 {[%clk
0:00:08.7]} 105... Rb1 {[%clk 0:00:05.8]} 106. Kf4 {[%clk 0:00:08.7]} 106... Rc1
{[%clk 0:00:06.4]} 107. Kg5 {[%clk 0:00:09]} 107... Rc4 {[%clk 0:00:07]} 108.
Kh5 {[%clk 0:00:09]} 108... Re4 {[%clk 0:00:06.7]} 109. Kg5 {[%clk 0:00:09.4]}
109... Kg8 {[%clk 0:00:06.3]} 110. Kg6 {[%clk 0:00:09]} 110... Rg4+ {[%clk
0:00:06.4]} 111. Kh5 {[%clk 0:00:09.4]} 111... Rg1 {[%clk 0:00:06]} 112. Kh4
{[%clk 0:00:09.9]} 112... Kf7 {[%clk 0:00:06.3]} 113. Kh3 {[%clk 0:00:10.2]}
113... Rg5 {[%clk 0:00:06.5]} 114. Kh4 {[%clk 0:00:09.7]} 114... Rxf5 {[%clk
0:00:06.6]} 115. Kg4 {[%clk 0:00:10.6]} 115... Kg6 {[%clk 0:00:06.6]} 116. Kg3
{[%clk 0:00:10.5]} 116... Rf1 {[%clk 0:00:06.4]} 117. Kg4 {[%clk 0:00:10.8]}
117... Rf2 {[%clk 0:00:05.9]} 118. Kg3 {[%clk 0:00:11.1]} 118... Rb2 {[%clk
0:00:05.1]} 119. Kg4 {[%clk 0:00:11.4]} 119... Rb5 {[%clk 0:00:05.2]} 120. Kf4
{[%clk 0:00:11.5]} 120... Rf5+ {[%clk 0:00:04.6]} 121. Ke4 {[%clk 0:00:11.7]}
121... Rf1 {[%clk 0:00:04.7]} 122. Ke5 {[%clk 0:00:11.6]} 122... Kf7 {[%clk
0:00:05.1]} 123. Ke4 {[%clk 0:00:10.6]} 123... Ke6 {[%clk 0:00:04.9]} 124. Kd4
{[%clk 0:00:10.5]} 124... Rf4+ {[%clk 0:00:04.9]} 125. Ke3 {[%clk 0:00:10.6]}
125... Ra4 {[%clk 0:00:04.3]} 126. Kd3 {[%clk 0:00:10.6]} 126... Rf4 {[%clk
0:00:03]} 127. Ke3 {[%clk 0:00:10.8]} 127... Rf1 {[%clk 0:00:03.1]} 128. Ke2
{[%clk 0:00:10.9]} 128... Rf5 {[%clk 0:00:02.8]} 129. Ke3 {[%clk 0:00:11.2]}
129... Kd5 {[%clk 0:00:03.3]} 130. Kd3 {[%clk 0:00:11.3]} 130... Rf3+ {[%clk
0:00:03.2]} 131. Ke2 {[%clk 0:00:11.5]} 131... Ke4 {[%clk 0:00:03.5]} 132. Ke1
{[%clk 0:00:11.7]} 132... Kd3 {[%clk 0:00:03.3]} 133. Bd8 {[%clk 0:00:11.3]}
133... Rf4 {[%clk 0:00:03.5]} 134. Be7 {[%clk 0:00:10.6]} 134... Rf5 {[%clk
0:00:03.2]} 135. Bd8 {[%clk 0:00:10.2]} 135... Rf4 {[%clk 0:00:01.9]} 136. Be7
{[%clk 0:00:10]} 136... Ke3 {[%clk 0:00:02.5]} 137. Bc5+ {[%clk 0:00:09]} 137...
Kf3 {[%clk 0:00:02.9]} 138. Be7 {[%clk 0:00:09.1]} 138... Ke3 {[%clk 0:00:03.2]}
139. Bc5+ {[%clk 0:00:08.6]} 139... Ke4 {[%clk 0:00:03.8]} 140. Be7 {[%clk
0:00:08.5]} 140... Kd3 {[%clk 0:00:04.4]} 141. Bd6 {[%clk 0:00:08.1]} 141... Rd4
{[%clk 0:00:04.8]} 142. Be7 {[%clk 0:00:07.8]} 142... Re4+ {[%clk 0:00:04.8]}
143. Kf2 {[%clk 0:00:07.5]} 143... Rf4+ {[%clk 0:00:05.4]} 144. Kg3 {[%clk
0:00:07.7]} 144... Ke3 {[%clk 0:00:05.9]} 145. Bc5+ {[%clk 0:00:06.8]} 145...
Ke4 {[%clk 0:00:06.3]} 146. Be7 {[%clk 0:00:07.7]} 146... Rf1 {[%clk 0:00:05.9]}
147. Kg4 {[%clk 0:00:08.6]} 147... Rg1+ {[%clk 0:00:05.7]} 148. Kh5 {[%clk
0:00:07.8]} 148... Kf5 {[%clk 0:00:05.6]} 149. Kh4 {[%clk 0:00:07.9]} 149... Kg6
{[%clk 0:00:04.6]} 150. Kh3 {[%clk 0:00:07.9]} 150... Rg5 {[%clk 0:00:04.7]}
151. Kh4 {[%clk 0:00:06.6]} 151... Rg2 {[%clk 0:00:04.3]} 152. Kh3 {[%clk
0:00:06.8]} 152... Ra2 {[%clk 0:00:04]} 153. Kg3 {[%clk 0:00:07]} 153... Ra4
{[%clk 0:00:04.6]} 154. Kf3 {[%clk 0:00:07]} 154... Rc4 {[%clk 0:00:04.9]} 155.
Ke3 {[%clk 0:00:07.9]} 155... Rc6 {[%clk 0:00:05.1]} 156. Kd3 {[%clk 0:00:08.8]}
156... Re6 {[%clk 0:00:05.2]} 157. Kd4 {[%clk 0:00:08.8]} 157... Re1 {[%clk
0:00:05.7]} 158. Kd5 {[%clk 0:00:09]} 158... Kf7 {[%clk 0:00:06.3]} 159. Kd6
{[%clk 0:00:09.1]} 159... Rd1+ {[%clk 0:00:05.9]} 160. Ke5 {[%clk 0:00:09.5]}
160... Rd2 {[%clk 0:00:06.4]} 161. Kf5 {[%clk 0:00:09.8]} 161... Rd5+ {[%clk
0:00:06.2]} 162. Ke4 {[%clk 0:00:09.8]} 162... Ke6 {[%clk 0:00:07.1]} 163. Kf4
{[%clk 0:00:10.2]} 163... Rf5+ {[%clk 0:00:07.1]} 164. Ke4 {[%clk 0:00:10.5]}
164... Rf1 {[%clk 0:00:08]} 1/2-1/2

[Event "*** SCC Grand Prix: Titled Tuesday Blitz"]
[Site "Chess.com"]
[Date "2020.06.02"]
[Round "5"]
[White "OrtizMarcos"]
[Black "PlayChessSimple"]
[Result "0-1"]
[WhiteElo "2329"]
[BlackElo "2516"]
[TimeControl "180+1"]
[EndTime "10:53:34 PDT"]
[Termination "PlayChessSimple won by resignation"]

1. e4 {[%clk 0:03:00.9]} 1... e6 {[%clk 0:02:59.9]} 2. d4 {[%clk 0:03:00.5]}
2... d5 {[%clk 0:03:00.4]} 3. Nc3 {[%clk 0:03:01]} 3... Nf6 {[%clk 0:02:59.2]}
4. e5 {[%clk 0:02:59.7]} 4... Nfd7 {[%clk 0:02:59.2]} 5. f4 {[%clk 0:03:00.4]}
5... c5 {[%clk 0:02:59.4]} 6. Nf3 {[%clk 0:03:01.3]} 6... Nc6 {[%clk 0:02:59.7]}
7. Be3 {[%clk 0:03:00.6]} 7... Qb6 {[%clk 0:02:59.9]} 8. Na4 {[%clk 0:02:59.7]}
8... Qa5+ {[%clk 0:03:00]} 9. c3 {[%clk 0:02:59.4]} 9... cxd4 {[%clk 0:03:00.4]}
10. b4 {[%clk 0:02:57.3]} 10... Qc7 {[%clk 0:02:58.5]} 11. Nxd4 {[%clk 0:02:54]}
11... a6 {[%clk 0:02:58.7]} 12. Nb2 {[%clk 0:02:46.6]} 12... Ncxe5 {[%clk
0:02:49.3]} 13. fxe5 {[%clk 0:02:25.8]} 13... Qxc3+ {[%clk 0:02:45.7]} 14. Qd2
{[%clk 0:02:26.3]} 14... Bxb4 {[%clk 0:02:44.6]} 15. Nd1 {[%clk 0:01:49.5]}
15... Qa3 {[%clk 0:02:37.7]} 0-1

[Event "*** SCC Grand Prix: Titled Tuesday Blitz"]
[Site "Chess.com"]
[Date "2020.06.02"]
[Round "5"]
[White "Pechen_Yeltsina"]
[Black "GaboSalazar2001"]
[Result "1-0"]
[WhiteElo "2704"]
[BlackElo "2256"]
[TimeControl "180+1"]
[EndTime "10:53:49 PDT"]
[Termination "Pechen_Yeltsina won by resignation"]

1. e4 {[%clk 0:03:00.9]} 1... c5 {[%clk 0:03:00.7]} 2. Nf3 {[%clk 0:03:00.5]}
2... d6 {[%clk 0:03:01.4]} 3. g3 {[%clk 0:03:01]} 3... Nf6 {[%clk 0:03:01]} 4.
d3 {[%clk 0:03:00.8]} 4... Nc6 {[%clk 0:03:01.4]} 5. Bg2 {[%clk 0:03:00.8]} 5...
g6 {[%clk 0:03:02.1]} 6. O-O {[%clk 0:03:01.3]} 6... Bg7 {[%clk 0:03:02.8]} 7.
Nbd2 {[%clk 0:03:02.1]} 7... O-O {[%clk 0:03:03.2]} 8. a4 {[%clk 0:03:03]} 8...
Rb8 {[%clk 0:03:03.3]} 9. Nc4 {[%clk 0:03:03.3]} 9... Be6 {[%clk 0:02:57.1]} 10.
Re1 {[%clk 0:02:59.6]} 10... a6 {[%clk 0:02:54.1]} 11. e5 {[%clk 0:02:58.2]}
11... dxe5 {[%clk 0:02:43.2]} 12. Ncxe5 {[%clk 0:02:59.1]} 12... Bd5 {[%clk
0:02:33.4]} 13. Nxc6 {[%clk 0:02:53.4]} 13... Bxc6 {[%clk 0:02:33.2]} 14. Bf4
{[%clk 0:02:53.8]} 14... Nd5 {[%clk 0:02:27.8]} 15. Bxb8 {[%clk 0:02:53.2]}
15... Qxb8 {[%clk 0:02:26.3]} 16. c3 {[%clk 0:02:53.4]} 16... Rd8 {[%clk
0:02:22.5]} 17. Nd2 {[%clk 0:02:53]} 17... b5 {[%clk 0:02:14]} 18. axb5 {[%clk
0:02:52.5]} 18... axb5 {[%clk 0:02:14.9]} 19. Nb3 {[%clk 0:02:40.9]} 19... Qd6
{[%clk 0:02:11.1]} 20. Ra6 {[%clk 0:02:36.7]} 20... Nc7 {[%clk 0:01:50.5]} 1-0

[Event "*** SCC Grand Prix: Titled Tuesday Blitz"]
[Site "Chess.com"]
[Date "2020.06.02"]
[Round "5"]
[White "MacDaddyMac"]
[Black "PattyCastillo"]
[Result "1-0"]
[WhiteElo "2272"]
[BlackElo "1918"]
[TimeControl "180+1"]
[EndTime "10:53:59 PDT"]
[Termination "MacDaddyMac won by resignation"]

1. e4 {[%clk 0:03:00.9]} 1... c5 {[%clk 0:02:59.5]} 2. Nc3 {[%clk 0:03:00.5]}
2... Nc6 {[%clk 0:02:58.7]} 3. f4 {[%clk 0:03:00.8]} 3... d6 {[%clk 0:02:57.3]}
4. Nf3 {[%clk 0:03:01.2]} 4... g6 {[%clk 0:02:56]} 5. Bb5 {[%clk 0:03:01.3]}
5... Bg7 {[%clk 0:02:53.1]} 6. O-O {[%clk 0:03:00.5]} 6... Bd7 {[%clk
0:02:52.2]} 7. d3 {[%clk 0:02:59.3]} 7... Nf6 {[%clk 0:02:51.9]} 8. Qe1 {[%clk
0:02:57.7]} 8... O-O {[%clk 0:02:51.6]} 9. Qh4 {[%clk 0:02:57.5]} 9... a6 {[%clk
0:02:50.6]} 10. Bxc6 {[%clk 0:02:57.6]} 10... Bxc6 {[%clk 0:02:50.5]} 11. f5
{[%clk 0:02:58.1]} 11... b5 {[%clk 0:02:32.1]} 12. Bh6 {[%clk 0:02:56.5]} 12...
b4 {[%clk 0:02:26.6]} 13. Ne2 {[%clk 0:02:53.1]} 13... a5 {[%clk 0:02:21.8]} 14.
Ng5 {[%clk 0:02:51.9]} 14... Re8 {[%clk 0:01:32.2]} 15. fxg6 {[%clk 0:02:45.7]}
15... fxg6 {[%clk 0:01:27.5]} 16. Bxg7 {[%clk 0:02:45.5]} 16... Kxg7 {[%clk
0:01:26.2]} 17. Rxf6 {[%clk 0:02:44.4]} 17... Kxf6 {[%clk 0:01:25.8]} 18. Rf1+
{[%clk 0:02:43.2]} 1-0